[Event "*** Titled Tuesday Blitz"]
[Site "Chess.com"]
[Date "2021.02.16"]
[Round "1"]
[White "safikiet"]
[Black "chescomhuynya"]
[Result "1-0"]
[WhiteElo "2305"]
[BlackElo "2577"]
[TimeControl "180+1"]
[EndTime "10:08:00 PST"]
[Termination "safikiet won by checkmate"]

1. d4 {[%clk 0:02:54.9]} 1... Nf6 {[%clk 0:02:58.9]} 2. c4 {[%clk 0:02:54.4]}
2... g6 {[%clk 0:02:58.6]} 3. Nc3 {[%clk 0:02:54.7]} 3... Bg7 {[%clk 0:02:59.2]}
4. e4 {[%clk 0:02:54.9]} 4... d6 {[%clk 0:02:59.9]} 5. Nf3 {[%clk 0:02:55.2]}
5... O-O {[%clk 0:03:00.5]} 6. Be2 {[%clk 0:02:54.8]} 6... e5 {[%clk 0:03:00.6]}
7. Be3 {[%clk 0:02:55.1]} 7... Nc6 {[%clk 0:02:55]} 8. d5 {[%clk 0:02:54.7]}
8... Ne7 {[%clk 0:02:55.4]} 9. Nd2 {[%clk 0:02:55.2]} 9... Nd7 {[%clk
0:02:55.8]} 10. f3 {[%clk 0:02:52.1]} 10... f5 {[%clk 0:02:55.3]} 11. b4 {[%clk
0:02:51.2]} 11... f4 {[%clk 0:02:53.7]} 12. Bf2 {[%clk 0:02:51.2]} 12... g5
{[%clk 0:02:44.3]} 13. c5 {[%clk 0:02:49]} 13... Nf6 {[%clk 0:02:39.8]} 14. h3
{[%clk 0:02:46.7]} 14... h5 {[%clk 0:02:39.4]} 15. Nc4 {[%clk 0:02:45.7]} 15...
Rf7 {[%clk 0:02:14.6]} 16. cxd6 {[%clk 0:02:41.2]} 16... cxd6 {[%clk 0:02:14.8]}
17. Nb5 {[%clk 0:02:41.1]} 17... Ne8 {[%clk 0:02:14.8]} 18. Nxa7 {[%clk
0:02:31.9]} 18... Bd7 {[%clk 0:02:12.7]} 19. a4 {[%clk 0:02:29]} 19... Ng6
{[%clk 0:02:04]} 20. b5 {[%clk 0:02:20.6]} 20... Bf8 {[%clk 0:01:45.9]} 21. a5
{[%clk 0:02:09.4]} 21... g4 {[%clk 0:01:34.2]} 22. hxg4 {[%clk 0:02:06.6]} 22...
hxg4 {[%clk 0:01:34.3]} 23. b6 {[%clk 0:01:44.6]} 23... g3 {[%clk 0:01:31.3]}
24. Bg1 {[%clk 0:01:43]} 24... Nh4 {[%clk 0:01:27.2]} 25. Bf1 {[%clk 0:01:41.3]}
25... Rh7 {[%clk 0:01:27.4]} 26. Rxh4 {[%clk 0:01:28.3]} 26... Rxh4 {[%clk
0:01:26.7]} 27. a6 {[%clk 0:01:09.1]} 27... bxa6 {[%clk 0:01:14]} 28. Nc6 {[%clk
0:00:50.6]} 28... Bxc6 {[%clk 0:00:40.8]} 29. dxc6 {[%clk 0:00:49.6]} 29... Rh1
{[%clk 0:00:37.2]} 30. c7 {[%clk 0:00:40.5]} 30... Nxc7 {[%clk 0:00:24.8]} 31.
bxc7 {[%clk 0:00:39.5]} 31... Qe8 {[%clk 0:00:11.6]} 32. Nb6 {[%clk 0:00:29.9]}
32... Rxg1 {[%clk 0:00:08.5]} 33. Qd5+ {[%clk 0:00:23.1]} 33... Kh7 {[%clk
0:00:08.2]} 34. Nxa8 {[%clk 0:00:20]} 34... Bg7 {[%clk 0:00:03.9]} 35. Nb6
{[%clk 0:00:18.6]} 35... Qh5 {[%clk 0:00:02.8]} 36. c8=Q {[%clk 0:00:17.8]}
36... Rxf1+ {[%clk 0:00:03]} 37. Kxf1 {[%clk 0:00:16.3]} 37... Qh1+ {[%clk
0:00:03.1]} 38. Ke2 {[%clk 0:00:16.9]} 38... Qxg2+ {[%clk 0:00:04]} 39. Kd3
{[%clk 0:00:16.9]} 39... Qxf3+ {[%clk 0:00:04.6]} 40. Kc4 {[%clk 0:00:17.3]}
40... Qe2+ {[%clk 0:00:05.3]} 41. Kb4 {[%clk 0:00:16.6]} 41... Qb2+ {[%clk
0:00:05.5]} 42. Qb3 {[%clk 0:00:16.2]} 42... Qd2+ {[%clk 0:00:05.6]} 43. Qcc3
{[%clk 0:00:14.7]} 43... Qf2 {[%clk 0:00:05.4]} 44. Rh1+ {[%clk 0:00:13.6]}
44... Kg6 {[%clk 0:00:05.9]} 45. Qe6+ {[%clk 0:00:13.2]} 45... Bf6 {[%clk
0:00:06.4]} 46. Rh6+ {[%clk 0:00:12.4]} 46... Kxh6 {[%clk 0:00:06.7]} 47. Qxf6+
{[%clk 0:00:13.2]} 47... Kh5 {[%clk 0:00:07.3]} 48. Qf5+ {[%clk 0:00:13.4]}
48... Kh4 {[%clk 0:00:07.8]} 49. Qh7+ {[%clk 0:00:12.3]} 49... Kg4 {[%clk
0:00:08.1]} 50. Qf5+ {[%clk 0:00:12.9]} 50... Kh4 {[%clk 0:00:08.6]} 51. Nc4
{[%clk 0:00:10.1]} 51... g2 {[%clk 0:00:07.3]} 52. Qch3# {[%clk 0:00:09.3]} 1-0

[Event "*** Titled Tuesday Blitz"]
[Site "Chess.com"]
[Date "2021.02.16"]
[Round "1"]
[White "KruHor"]
[Black "rozabaku"]
[Result "1-0"]
[WhiteElo "2539"]
[BlackElo "2214"]
[TimeControl "180+1"]
[EndTime "10:08:00 PST"]
[Termination "KruHor won by checkmate"]

1. e4 {[%clk 0:02:58.2]} 1... e6 {[%clk 0:02:59.5]} 2. d4 {[%clk 0:02:57.3]}
2... d5 {[%clk 0:02:59.6]} 3. Nc3 {[%clk 0:02:57.1]} 3... Nf6 {[%clk 0:02:59.2]}
4. Bg5 {[%clk 0:02:55.4]} 4... Be7 {[%clk 0:02:59]} 5. Bxf6 {[%clk 0:02:54.7]}
5... Bxf6 {[%clk 0:02:58.5]} 6. Nf3 {[%clk 0:02:54.5]} 6... dxe4 {[%clk
0:02:56.4]} 7. Nxe4 {[%clk 0:02:53.7]} 7... O-O {[%clk 0:02:56.5]} 8. Qd2 {[%clk
0:02:48.3]} 8... b6 {[%clk 0:02:54.4]} 9. O-O-O {[%clk 0:02:47.6]} 9... Bb7
{[%clk 0:02:53.2]} 10. Bd3 {[%clk 0:02:46.8]} 10... Nc6 {[%clk 0:02:51.3]} 11.
c3 {[%clk 0:02:42.9]} 11... a5 {[%clk 0:02:48.8]} 12. g4 {[%clk 0:02:38.9]}
12... a4 {[%clk 0:02:46.5]} 13. g5 {[%clk 0:02:38.3]} 13... Be7 {[%clk
0:02:45.6]} 14. Rhg1 {[%clk 0:02:37.2]} 14... a3 {[%clk 0:02:43.7]} 15. b3
{[%clk 0:02:35.8]} 15... Na5 {[%clk 0:02:41.6]} 16. Kb1 {[%clk 0:02:26.3]} 16...
c5 {[%clk 0:02:29]} 17. Qf4 {[%clk 0:02:14]} 17... c4 {[%clk 0:02:17.6]} 18.
Nf6+ {[%clk 0:02:07.3]} 18... Bxf6 {[%clk 0:02:00.8]} 19. gxf6 {[%clk
0:02:06.6]} 19... g6 {[%clk 0:02:01.1]} 20. Ng5 {[%clk 0:01:51.5]} 20... cxb3
{[%clk 0:01:36.4]} 21. Qh4 {[%clk 0:01:22.6]} 21... bxa2+ {[%clk 0:01:33.2]} 22.
Kc2 {[%clk 0:01:21.2]} 22... h5 {[%clk 0:01:19.5]} 23. Nxf7 {[%clk 0:01:13.6]}
23... Rxf7 {[%clk 0:00:59.2]} 24. Rxg6+ {[%clk 0:01:04.6]} 24... Kf8 {[%clk
0:00:46.1]} 25. Qg5 {[%clk 0:00:56.6]} 25... Ke8 {[%clk 0:00:37.3]} 26. Bb5+
{[%clk 0:00:47.4]} 26... Bc6 {[%clk 0:00:34.1]} 27. Rg8+ {[%clk 0:00:44.8]}
27... Kd7 {[%clk 0:00:33.7]} 28. Rxd8+ {[%clk 0:00:38.1]} 28... Rxd8 {[%clk
0:00:34.6]} 29. Bxc6+ {[%clk 0:00:32.3]} 29... Nxc6 {[%clk 0:00:35.5]} 30. d5
{[%clk 0:00:31.1]} 30... a1=Q {[%clk 0:00:23.8]} 31. Rxa1 {[%clk 0:00:27.2]}
31... Nb8 {[%clk 0:00:16.3]} 32. Rd1 {[%clk 0:00:24.3]} 32... e5 {[%clk
0:00:15.7]} 33. Qxe5 {[%clk 0:00:22.9]} 33... Re8 {[%clk 0:00:16.4]} 34. Qf5+
{[%clk 0:00:22.1]} 34... Kd6 {[%clk 0:00:15.4]} 35. Kb3 {[%clk 0:00:21]} 35...
Re5 {[%clk 0:00:15.4]} 36. Qg6 {[%clk 0:00:20.1]} 36... Rf8 {[%clk 0:00:13.6]}
37. f7+ {[%clk 0:00:19.6]} 37... Kd7 {[%clk 0:00:14]} 38. Qf6 {[%clk 0:00:17.4]}
38... Re7 {[%clk 0:00:13.7]} 39. Qf5+ {[%clk 0:00:15.8]} 39... Kd8 {[%clk
0:00:12.1]} 40. d6 {[%clk 0:00:15]} 40... Rd7 {[%clk 0:00:12]} 41. Qf6+ {[%clk
0:00:14.5]} 41... Kc8 {[%clk 0:00:12.6]} 42. Qe7 {[%clk 0:00:13.2]} 42... Rxf7
{[%clk 0:00:13.5]} 43. Qe8+ {[%clk 0:00:11.8]} 43... Kb7 {[%clk 0:00:14.1]} 44.
Qe4+ {[%clk 0:00:11.5]} 44... Nc6 {[%clk 0:00:14.8]} 45. Kxa3 {[%clk 0:00:11]}
45... b5 {[%clk 0:00:13.6]} 46. Rd5 {[%clk 0:00:10.1]} 46... Kb6 {[%clk
0:00:14.5]} 47. Qe3+ {[%clk 0:00:09.9]} 47... Ka6 {[%clk 0:00:14.1]} 48. Qd3
{[%clk 0:00:09.1]} 48... Rb7 {[%clk 0:00:14.4]} 49. d7 {[%clk 0:00:07.7]} 49...
Nd8 {[%clk 0:00:13]} 50. Rd6+ {[%clk 0:00:07.4]} 50... Ka7 {[%clk 0:00:13.5]}
51. Qd4+ {[%clk 0:00:07.6]} 51... Kb8 {[%clk 0:00:13.3]} 52. Qe5 {[%clk
0:00:07.6]} 52... b4+ {[%clk 0:00:14.2]} 53. cxb4 {[%clk 0:00:07]} 53... Ka7
{[%clk 0:00:15]} 54. Qd4+ {[%clk 0:00:06.3]} 54... Kb8 {[%clk 0:00:14.8]} 55.
Qe5 {[%clk 0:00:06.4]} 55... Ka7 {[%clk 0:00:15.1]} 56. Rd5 {[%clk 0:00:06.5]}
56... Rfxd7 {[%clk 0:00:14.7]} 57. Ra5+ {[%clk 0:00:06.1]} 57... Kb6 {[%clk
0:00:13.9]} 58. Qc5# {[%clk 0:00:05.8]} 1-0

[Event "*** Titled Tuesday Blitz"]
[Site "Chess.com"]
[Date "2021.02.16"]
[Round "1"]
[White "Mr_Heisenberg13"]
[Black "kobemagic"]
[Result "0-1"]
[WhiteElo "2686"]
[BlackElo "2391"]
[TimeControl "180+1"]
[EndTime "10:08:02 PST"]
[Termination "kobemagic won by resignation"]

1. Nf3 {[%clk 0:02:59.6]} 1... Nf6 {[%clk 0:02:59.5]} 2. d4 {[%clk 0:02:57.2]}
2... c5 {[%clk 0:02:58.2]} 3. c3 {[%clk 0:02:55.8]} 3... d5 {[%clk 0:02:54.7]}
4. Bf4 {[%clk 0:02:53.6]} 4... cxd4 {[%clk 0:02:50.2]} 5. cxd4 {[%clk
0:02:52.1]} 5... Nc6 {[%clk 0:02:51.1]} 6. Nc3 {[%clk 0:02:52]} 6... e6 {[%clk
0:02:50.4]} 7. e3 {[%clk 0:02:51.1]} 7... Bd6 {[%clk 0:02:49.1]} 8. Bg3 {[%clk
0:02:51]} 8... O-O {[%clk 0:02:48.1]} 9. Bd3 {[%clk 0:02:50.6]} 9... Qe7 {[%clk
0:02:34.5]} 10. Bh4 {[%clk 0:02:48.5]} 10... Qd8 {[%clk 0:02:07.6]} 11. O-O
{[%clk 0:02:45.3]} 11... Be7 {[%clk 0:02:07.4]} 12. Rc1 {[%clk 0:02:41.8]} 12...
a6 {[%clk 0:02:04.5]} 13. Na4 {[%clk 0:02:39.3]} 13... Nd7 {[%clk 0:01:46.6]}
14. Bxe7 {[%clk 0:02:35.3]} 14... Qxe7 {[%clk 0:01:45.9]} 15. Nc5 {[%clk
0:02:35.8]} 15... Nxc5 {[%clk 0:01:44.9]} 16. Rxc5 {[%clk 0:02:36.7]} 16... e5
{[%clk 0:01:37.1]} 17. dxe5 {[%clk 0:02:29.4]} 17... Qxc5 {[%clk 0:01:32.4]} 18.
h3 {[%clk 0:02:18.4]} 18... Qe7 {[%clk 0:01:17.3]} 19. Bb1 {[%clk 0:02:05.2]}
19... Nxe5 {[%clk 0:01:11.5]} 20. Nd4 {[%clk 0:02:05.7]} 20... g6 {[%clk
0:01:05]} 21. Qd2 {[%clk 0:02:01.6]} 21... Nc6 {[%clk 0:00:53.5]} 22. Nf3 {[%clk
0:01:58.5]} 22... Be6 {[%clk 0:00:49.9]} 23. Rd1 {[%clk 0:01:55.1]} 23... Qf6
{[%clk 0:00:49.2]} 24. Kh2 {[%clk 0:01:43.8]} 24... Rfd8 {[%clk 0:00:48.1]} 25.
b3 {[%clk 0:01:40]} 25... Bf5 {[%clk 0:00:44.7]} 26. Kg1 {[%clk 0:01:31.7]}
26... Bxb1 {[%clk 0:00:43.6]} 27. Rxb1 {[%clk 0:01:32.6]} 27... Ne5 {[%clk
0:00:40.7]} 28. Nd4 {[%clk 0:01:32.6]} 28... Nc6 {[%clk 0:00:40]} 29. Nf3 {[%clk
0:01:32.3]} 29... d4 {[%clk 0:00:39.8]} 30. e4 {[%clk 0:01:32.7]} 30... Ne5
{[%clk 0:00:35.3]} 31. Ne1 {[%clk 0:01:32.9]} 31... Rac8 {[%clk 0:00:26.6]} 32.
f4 {[%clk 0:01:32.7]} 32... Nc6 {[%clk 0:00:25.1]} 33. Nd3 {[%clk 0:01:32.8]}
33... Qe7 {[%clk 0:00:23.1]} 34. e5 {[%clk 0:01:31.7]} 34... a5 {[%clk
0:00:22.4]} 35. Rf1 {[%clk 0:01:31.6]} 35... Nb4 {[%clk 0:00:22.2]} 36. Nf2
{[%clk 0:01:31.8]} 36... d3 {[%clk 0:00:22]} 37. Ne4 {[%clk 0:01:28.1]} 37...
Rc2 {[%clk 0:00:20.8]} 38. Qe3 {[%clk 0:01:28]} 38... Qc7 {[%clk 0:00:17.1]} 39.
Nf6+ {[%clk 0:01:11.6]} 39... Kg7 {[%clk 0:00:16.7]} 40. Kh2 {[%clk 0:01:09.6]}
40... Re2 {[%clk 0:00:14.3]} 41. Qg3 {[%clk 0:01:07]} 41... Qc2 {[%clk
0:00:11.9]} 42. Qg5 {[%clk 0:00:51.6]} 42... Rxg2+ {[%clk 0:00:07.3]} 43. Qxg2
{[%clk 0:00:51.8]} 43... Qxg2+ {[%clk 0:00:08.2]} 44. Kxg2 {[%clk 0:00:52.7]}
44... Nxa2 {[%clk 0:00:08.6]} 45. Ne4 {[%clk 0:00:50.9]} 45... b5 {[%clk
0:00:06.8]} 46. Kf3 {[%clk 0:00:45.1]} 46... a4 {[%clk 0:00:06.7]} 47. bxa4
{[%clk 0:00:44.5]} 47... bxa4 {[%clk 0:00:07.6]} 48. Ra1 {[%clk 0:00:44]} 48...
d2 {[%clk 0:00:07.5]} 49. Rd1 {[%clk 0:00:20.9]} 49... a3 {[%clk 0:00:06.9]} 50.
Ke3 {[%clk 0:00:17.5]} 50... Nb4 {[%clk 0:00:06.7]} 51. Ke2 {[%clk 0:00:16.5]}
51... a2 {[%clk 0:00:06.9]} 52. Ra1 {[%clk 0:00:16.7]} 52... d1=Q+ {[%clk
0:00:06.9]} 53. Rxd1 {[%clk 0:00:16]} 53... Rxd1 {[%clk 0:00:07]} 54. Kxd1
{[%clk 0:00:16.9]} 54... a1=Q+ {[%clk 0:00:07.5]} 55. Ke2 {[%clk 0:00:17.8]}
55... Qd4 {[%clk 0:00:07.5]} 56. Kf3 {[%clk 0:00:18.7]} 56... Qd3+ {[%clk
0:00:07.5]} 0-1

[Event "*** Titled Tuesday Blitz"]
[Site "Chess.com"]
[Date "2021.02.16"]
[Round "1"]
[White "MaxLeto"]
[Black "PotapovaM"]
[Result "1-0"]
[WhiteElo "2337"]
[BlackElo "2604"]
[TimeControl "180+1"]
[EndTime "10:08:03 PST"]
[Termination "MaxLeto won by checkmate"]

1. e4 {[%clk 0:02:50]} 1... c5 {[%clk 0:02:59.7]} 2. Nf3 {[%clk 0:02:49]} 2...
d6 {[%clk 0:03:00.2]} 3. d4 {[%clk 0:02:48.1]} 3... cxd4 {[%clk 0:03:01.1]} 4.
Nxd4 {[%clk 0:02:49]} 4... Nf6 {[%clk 0:03:01.4]} 5. Nc3 {[%clk 0:02:49.5]} 5...
a6 {[%clk 0:03:01.9]} 6. h3 {[%clk 0:02:48.5]} 6... e5 {[%clk 0:03:01.3]} 7.
Nde2 {[%clk 0:02:44.4]} 7... h5 {[%clk 0:02:47.6]} 8. Bg5 {[%clk 0:02:41.2]}
8... Be6 {[%clk 0:02:46.8]} 9. Nd5 {[%clk 0:02:30.1]} 9... Nbd7 {[%clk
0:02:42.7]} 10. Nec3 {[%clk 0:02:24.4]} 10... Be7 {[%clk 0:02:33.9]} 11. Bxf6
{[%clk 0:02:23.2]} 11... Nxf6 {[%clk 0:02:31.7]} 12. Bc4 {[%clk 0:02:19.6]}
12... Rc8 {[%clk 0:02:25.1]} 13. Bb3 {[%clk 0:02:16.6]} 13... h4 {[%clk
0:01:23.6]} 14. O-O {[%clk 0:02:15.6]} 14... O-O {[%clk 0:01:20.8]} 15. a4
{[%clk 0:02:04]} 15... Nxd5 {[%clk 0:01:05.8]} 16. Bxd5 {[%clk 0:02:01.5]} 16...
Qd7 {[%clk 0:00:57.9]} 17. Qd3 {[%clk 0:01:49.4]} 17... Rc5 {[%clk 0:00:48.6]}
18. Ra3 {[%clk 0:01:08]} 18... Qc8 {[%clk 0:00:35.7]} 19. b4 {[%clk 0:00:55.5]}
19... Rc7 {[%clk 0:00:34.9]} 20. a5 {[%clk 0:00:55.7]} 20... Qb8 {[%clk
0:00:26.8]} 21. Na4 {[%clk 0:00:39.3]} 21... Rfc8 {[%clk 0:00:25.3]} 22. Nb6
{[%clk 0:00:35.8]} 22... Rd8 {[%clk 0:00:22.6]} 23. c4 {[%clk 0:00:30.7]} 23...
Rf8 {[%clk 0:00:22.5]} 24. Rd1 {[%clk 0:00:28]} 24... Qd8 {[%clk 0:00:21.8]} 25.
Qf3 {[%clk 0:00:23.6]} 25... Qb8 {[%clk 0:00:20.5]} 26. Qe2 {[%clk 0:00:21.6]}
26... Qe8 {[%clk 0:00:19.2]} 27. Rad3 {[%clk 0:00:21]} 27... Qb8 {[%clk
0:00:19.1]} 28. Qh5 {[%clk 0:00:20.5]} 28... g6 {[%clk 0:00:18.4]} 29. Qh6
{[%clk 0:00:20]} 29... Bf6 {[%clk 0:00:18.4]} 30. Bxe6 {[%clk 0:00:19]} 30...
fxe6 {[%clk 0:00:17.6]} 31. Qxg6+ {[%clk 0:00:19.5]} 31... Rg7 {[%clk
0:00:18.3]} 32. Qh5 {[%clk 0:00:19.6]} 32... Be7 {[%clk 0:00:14.3]} 33. Nd7
{[%clk 0:00:16.2]} 33... Qd8 {[%clk 0:00:14.3]} 34. Nxf8 {[%clk 0:00:16.2]}
34... Qxf8 {[%clk 0:00:15.2]} 35. Rf3 {[%clk 0:00:15.5]} 35... Qd8 {[%clk
0:00:14.2]} 36. c5 {[%clk 0:00:15.4]} 36... Rg5 {[%clk 0:00:12.1]} 37. Qf7+
{[%clk 0:00:12.9]} 37... Kh8 {[%clk 0:00:11.6]} 38. Qxe6 {[%clk 0:00:11.6]}
38... Rg7 {[%clk 0:00:09.2]} 39. cxd6 {[%clk 0:00:10.6]} 39... Bg5 {[%clk
0:00:09.5]} 40. Qxe5 {[%clk 0:00:10]} 40... Kh7 {[%clk 0:00:09]} 41. Qf5+ {[%clk
0:00:09.3]} 41... Rg6 {[%clk 0:00:07.3]} 42. e5 {[%clk 0:00:09.2]} 42... Kh6
{[%clk 0:00:07.1]} 43. d7 {[%clk 0:00:09.3]} 43... Rg7 {[%clk 0:00:07.1]} 44. e6
{[%clk 0:00:09.4]} 44... Be7 {[%clk 0:00:06.3]} 45. Qf4+ {[%clk 0:00:09.3]}
45... Kh7 {[%clk 0:00:06.3]} 46. Qe4+ {[%clk 0:00:08.8]} 46... Kh8 {[%clk
0:00:06.5]} 47. Qxb7 {[%clk 0:00:08.7]} 47... Qg8 {[%clk 0:00:03.8]} 48. Rf7
{[%clk 0:00:08.3]} 48... Rxg2+ {[%clk 0:00:03.5]} 49. Qxg2 {[%clk 0:00:07.7]}
49... Qd8 {[%clk 0:00:03.1]} 50. Qg6 {[%clk 0:00:07.2]} 50... Bf6 {[%clk
0:00:02.8]} 51. Qh7# {[%clk 0:00:07.5]} 1-0

[Event "*** Titled Tuesday Blitz"]
[Site "Chess.com"]
[Date "2021.02.16"]
[Round "1"]
[White "googlegoom"]
[Black "MuhittinBuker"]
[Result "0-1"]
[WhiteElo "2472"]
[BlackElo "2074"]
[TimeControl "180+1"]
[EndTime "10:08:05 PST"]
[Termination "MuhittinBuker won on time"]

1. Nf3 {[%clk 0:03:00.9]} 1... Nf6 {[%clk 0:02:56.6]} 2. b3 {[%clk 0:03:01.2]}
2... g6 {[%clk 0:02:55]} 3. Bb2 {[%clk 0:03:01.6]} 3... Bg7 {[%clk 0:02:55.7]}
4. e3 {[%clk 0:03:02.2]} 4... O-O {[%clk 0:02:56.2]} 5. Be2 {[%clk 0:03:02.2]}
5... d5 {[%clk 0:02:56.6]} 6. d4 {[%clk 0:03:03.1]} 6... b6 {[%clk 0:02:52.5]}
7. O-O {[%clk 0:03:03.5]} 7... Bb7 {[%clk 0:02:51.7]} 8. Nbd2 {[%clk 0:03:04.1]}
8... Nbd7 {[%clk 0:02:51.8]} 9. c4 {[%clk 0:03:04.7]} 9... c6 {[%clk 0:02:47.5]}
10. Rc1 {[%clk 0:03:05.2]} 10... Rc8 {[%clk 0:02:46.6]} 11. Qc2 {[%clk
0:03:05.8]} 11... Re8 {[%clk 0:02:46]} 12. Rfd1 {[%clk 0:03:04.9]} 12... dxc4
{[%clk 0:02:35.3]} 13. Nxc4 {[%clk 0:03:03]} 13... Qc7 {[%clk 0:02:25.3]} 14.
Qb1 {[%clk 0:02:57.5]} 14... Qb8 {[%clk 0:02:24.6]} 15. Nce5 {[%clk 0:02:55.8]}
15... c5 {[%clk 0:02:16.7]} 16. dxc5 {[%clk 0:02:32]} 16... Nxc5 {[%clk
0:02:10.6]} 17. Ng5 {[%clk 0:02:23.1]} 17... Rf8 {[%clk 0:01:56.2]} 18. Bc4
{[%clk 0:02:12.7]} 18... e6 {[%clk 0:01:53.8]} 19. b4 {[%clk 0:01:43.9]} 19...
Nce4 {[%clk 0:01:50.2]} 20. Ngxf7 {[%clk 0:01:14.6]} 20... Rxc4 {[%clk
0:01:46.4]} 21. Rxc4 {[%clk 0:01:08.2]} 21... Rxf7 {[%clk 0:01:43.9]} 22. Nxf7
{[%clk 0:01:08.3]} 22... Kxf7 {[%clk 0:01:42]} 23. f3 {[%clk 0:00:59.3]} 23...
Ng5 {[%clk 0:01:28.1]} 24. Qc2 {[%clk 0:00:46.7]} 24... Nd5 {[%clk 0:01:13.6]}
25. Re1 {[%clk 0:00:37.8]} 25... Bxb2 {[%clk 0:01:06.8]} 26. Qxb2 {[%clk
0:00:34.5]} 26... b5 {[%clk 0:01:04.5]} 27. Rd4 {[%clk 0:00:29.6]} 27... e5
{[%clk 0:00:59.3]} 28. Rd2 {[%clk 0:00:23]} 28... Qe8 {[%clk 0:00:50.1]} 29. Qb3
{[%clk 0:00:21.6]} 29... Qe6 {[%clk 0:00:46.5]} 30. Red1 {[%clk 0:00:20.5]}
30... Ne7 {[%clk 0:00:24.6]} 31. Qxe6+ {[%clk 0:00:17.8]} 31... Nxe6 {[%clk
0:00:23.5]} 32. Rd7 {[%clk 0:00:16.8]} 32... Bc6 {[%clk 0:00:20.6]} 33. Rxa7
{[%clk 0:00:16.3]} 33... Kf6 {[%clk 0:00:17.5]} 34. Rd6 {[%clk 0:00:15.2]} 34...
Bd5 {[%clk 0:00:17]} 35. Rda6 {[%clk 0:00:10.3]} 35... Bc4 {[%clk 0:00:16.4]}
36. Rb7 {[%clk 0:00:09.7]} 36... Nd5 {[%clk 0:00:14.6]} 37. a3 {[%clk
0:00:08.1]} 37... Nxe3 {[%clk 0:00:14.4]} 38. Rxh7 {[%clk 0:00:07.3]} 38... Kf5
{[%clk 0:00:12.5]} 39. Rf7+ {[%clk 0:00:07.1]} 39... Kg5 {[%clk 0:00:12.2]} 40.
Re7 {[%clk 0:00:05.2]} 40... Nf4 {[%clk 0:00:12.3]} 41. Rxe5+ {[%clk 0:00:05.1]}
41... Kh6 {[%clk 0:00:11.1]} 42. g3 {[%clk 0:00:05.8]} 42... Nh3+ {[%clk
0:00:10.1]} 43. Kh1 {[%clk 0:00:03.2]} 43... Nf5 {[%clk 0:00:07.8]} 44. g4
{[%clk 0:00:02.4]} 44... Nh4 {[%clk 0:00:07.5]} 45. Re1 {[%clk 0:00:01]} 45...
Kg5 {[%clk 0:00:06]} 46. f4+ {[%clk 0:00:01.1]} 46... Kxg4 {[%clk 0:00:06]} 47.
Rf6 {[%clk 0:00:01.8]} 47... Nf5 {[%clk 0:00:04.2]} 48. Rxg6+ {[%clk 0:00:01.8]}
48... Kxf4 {[%clk 0:00:01.9]} 49. Rg2 {[%clk 0:00:01.4]} 49... Bd5 {[%clk
0:00:01.4]} 0-1

[Event "*** Titled Tuesday Blitz"]
[Site "Chess.com"]
[Date "2021.02.16"]
[Round "1"]
[White "OldweakGM"]
[Black "lolo9292"]
[Result "0-1"]
[WhiteElo "2789"]
[BlackElo "2444"]
[TimeControl "180+1"]
[EndTime "10:08:07 PST"]
[Termination "lolo9292 won on time"]

1. Nf3 {[%clk 0:02:57.1]} 1... d5 {[%clk 0:02:58.8]} 2. d4 {[%clk 0:02:57]} 2...
c6 {[%clk 0:02:55.5]} 3. Bf4 {[%clk 0:02:56.2]} 3... Qb6 {[%clk 0:02:53.5]} 4.
Qc1 {[%clk 0:02:54.3]} 4... Nf6 {[%clk 0:02:52.4]} 5. e3 {[%clk 0:02:54.2]} 5...
Nh5 {[%clk 0:02:51.9]} 6. Bg3 {[%clk 0:02:51.2]} 6... Nxg3 {[%clk 0:02:51.1]} 7.
hxg3 {[%clk 0:02:52.1]} 7... g6 {[%clk 0:02:50.3]} 8. c4 {[%clk 0:02:52.6]} 8...
e6 {[%clk 0:02:47.7]} 9. Nc3 {[%clk 0:02:52.6]} 9... Bg7 {[%clk 0:02:44.6]} 10.
cxd5 {[%clk 0:02:52.4]} 10... exd5 {[%clk 0:02:42.3]} 11. Nxd5 {[%clk
0:02:52.6]} 11... Qd8 {[%clk 0:02:41.9]} 12. Nc3 {[%clk 0:02:52.2]} 12... O-O
{[%clk 0:02:42.2]} 13. Bc4 {[%clk 0:02:52.7]} 13... Nd7 {[%clk 0:02:41.9]} 14.
Bb3 {[%clk 0:02:49.8]} 14... c5 {[%clk 0:02:40.7]} 15. O-O {[%clk 0:02:46.6]}
15... cxd4 {[%clk 0:02:39.1]} 16. exd4 {[%clk 0:02:47.1]} 16... b6 {[%clk
0:02:35.9]} 17. Re1 {[%clk 0:02:43.8]} 17... Bb7 {[%clk 0:02:34.7]} 18. Qf4
{[%clk 0:02:42.6]} 18... Rc8 {[%clk 0:02:31.2]} 19. Nd5 {[%clk 0:02:31.4]} 19...
Bxd5 {[%clk 0:02:24.9]} 20. Bxd5 {[%clk 0:02:32.3]} 20... Nf6 {[%clk 0:02:25.2]}
21. Bb3 {[%clk 0:02:32.4]} 21... Nh5 {[%clk 0:02:15.8]} 22. Qe4 {[%clk 0:02:27]}
22... Nf6 {[%clk 0:02:14.2]} 23. Qd3 {[%clk 0:02:27.4]} 23... Ng4 {[%clk
0:02:13.1]} 24. Re4 {[%clk 0:02:23.3]} 24... h5 {[%clk 0:02:10.9]} 25. Rae1
{[%clk 0:02:22.7]} 25... Bf6 {[%clk 0:01:57.1]} 26. Rxg4 {[%clk 0:02:06.2]}
26... hxg4 {[%clk 0:01:56.8]} 27. Qxg6+ {[%clk 0:02:05.8]} 27... Kh8 {[%clk
0:01:56.1]} 28. Qh6+ {[%clk 0:01:43.2]} 28... Kg8 {[%clk 0:01:55.8]} 29. Re5
{[%clk 0:01:31.8]} 29... Bxe5 {[%clk 0:01:48.2]} 30. Nxe5 {[%clk 0:01:17.3]}
30... Qxd4 {[%clk 0:01:23.2]} 31. Qg6+ {[%clk 0:01:07.2]} 31... Kh8 {[%clk
0:01:21.6]} 32. Bxf7 {[%clk 0:00:59]} 32... Qd2 {[%clk 0:00:58.3]} 33. Qf6+
{[%clk 0:00:58.3]} 33... Kh7 {[%clk 0:00:57.5]} 34. Qf5+ {[%clk 0:00:53.4]}
34... Kg7 {[%clk 0:00:54.6]} 35. Qxg4+ {[%clk 0:00:52.4]} 35... Kf6 {[%clk
0:00:52]} 36. Qe6+ {[%clk 0:00:48.5]} 36... Kg7 {[%clk 0:00:48.7]} 37. Qg6+
{[%clk 0:00:47.7]} 37... Kh8 {[%clk 0:00:48.5]} 38. Qf6+ {[%clk 0:00:48]} 38...
Kh7 {[%clk 0:00:48.6]} 39. Bg6+ {[%clk 0:00:46.7]} 39... Kg8 {[%clk 0:00:48.4]}
40. Qe6+ {[%clk 0:00:45.9]} 40... Kh8 {[%clk 0:00:47.9]} 41. Qh3+ {[%clk
0:00:33.6]} 41... Kg7 {[%clk 0:00:47.7]} 42. Qh7+ {[%clk 0:00:33.7]} 42... Kf6
{[%clk 0:00:48]} 43. Nd7+ {[%clk 0:00:32.3]} 43... Ke6 {[%clk 0:00:33.1]} 44.
Nxf8+ {[%clk 0:00:23.3]} 44... Rxf8 {[%clk 0:00:34]} 45. f4 {[%clk 0:00:24]}
45... Qd4+ {[%clk 0:00:31.8]} 46. Kf1 {[%clk 0:00:24.2]} 46... Qc4+ {[%clk
0:00:30.5]} 47. Bd3 {[%clk 0:00:23]} 47... Qc1+ {[%clk 0:00:30.4]} 48. Kf2
{[%clk 0:00:23.5]} 48... Qxb2+ {[%clk 0:00:30.9]} 49. Kf3 {[%clk 0:00:23.6]}
49... Qd4 {[%clk 0:00:30.1]} 50. Qh6+ {[%clk 0:00:20.4]} 50... Rf6 {[%clk
0:00:29.9]} 51. Qh3+ {[%clk 0:00:19.3]} 51... Kd6 {[%clk 0:00:29.9]} 52. Qh7
{[%clk 0:00:18.2]} 52... Re6 {[%clk 0:00:29.1]} 53. Be4 {[%clk 0:00:16.9]} 53...
Qc3+ {[%clk 0:00:27.5]} 54. Kg4 {[%clk 0:00:17.3]} 54... Re7 {[%clk 0:00:27.2]}
55. Qg6+ {[%clk 0:00:17.3]} 55... Kc7 {[%clk 0:00:26.5]} 56. Kh3 {[%clk
0:00:17.7]} 56... Qh8+ {[%clk 0:00:24.9]} 0-1